{"text_format":"3","workbook":"xlsx","n_sheets":8,"sheets":["Forklift Northern","Forklift Gauteng","Forklift Central","Forklift KZN","Forklift Eastern Cape","Forklift Western Cape","Motorbike Gauteng","Motorbike Western Cape"],"read":"whole","date_system":"1900"}

{"sheet":"Forklift Northern","index":0,"n_rows":11,"n_cols":15,"rows_kept":11,"merged":[[1,5,1,9],[1,10,1,12],[1,14,2,14],[2,0,3,0],[2,1,3,1],[2,2,3,2],[2,3,3,3]]}
["Annexure F - Pricing Schedule"]
[{"$nulls":4},"Labour Rate per hour","SERVICE",{"$nulls":4},"BATTERY",null,null,"LOAD TESTING","Total Cost per machine"]
["Forklift Region","Region Depot","Vehicle Description","Total No. of Veh","Labour Rate per hour","Indicate Standard Labour Hours to complete a Service","Total Labour Service","Service Cost (All inclusive) per vehicle","Call Out Fee","Total Cost for Service per vehicle","New Battery Cost","Indicate Standard Labour Hours to replace battery","Labour Cost for Battery replacement","Load Testing certificate per machine cost"]
[{"$nulls":4},"R","HOURS",null,"R","R","R","R","HOURS","R","R","R"]
["Northern Region","Polokwane","3 TON",1,null,null,{"$f":"F5*E5","v":0},null,null,{"$f":"I5+H5+G5","v":0},null,null,{"$f":"L5*E5","v":0},null,{"$f":"N5+M5+K5+J5","v":0}]
["Northern Region Total",null,null,1,{"$nulls":10},{"$f":"SUM(O5)","v":0}]
[]
["Please complete every column - please do not leave blank.  If it is NO Charge put a 0"]
["* Cost must be all inclusive, if any cost not included will be incomplete pricing."]
["* All Prices must be inclusive of VAT"]
["* The quoted rates as per the bid proposal submitted will be fixed for the duration of the contract, any other or additional work/spares will be on a quote basis as and when required"]

{"sheet":"Forklift Gauteng","index":1,"n_rows":25,"n_cols":15,"rows_kept":25,"merged":[[1,5,1,9],[1,10,1,12],[1,14,2,14],[2,0,3,0],[2,1,3,1],[2,2,3,2],[2,3,3,3],[4,0,11,0],[7,1,8,1],[9,1,10,1],[14,5,14,9],[14,11,14,13],[14,14,15,14],[15,0,16,0],[15,1,16,1],[15,2,16,2],[15,3,16,3]]}
["Annexure F - Pricing Schedule"]
[{"$nulls":4},"Labour Rate per hour","SERVICE",{"$nulls":4},"BATTERY",null,null,"LOAD TESTING","Total Cost per machine"]
["Forklift Region","Region Depot","Vehicle Description","Total No. of Veh","Labour Rate per hour","Indicate Standard Labour Hours to complete a Service","Total Labour Service","Service Cost (All inclusive) per vehicle","Call Out Fee","Total Cost for Service per vehicle","New Battery Cost","Indicate Standard Labour Hours to replace battery","Labour Cost for Battery replacement","Load Testing certificate per machine cost"]
[{"$nulls":4},"R","HOURS",null,"R","R","R","R","HOURS","R","R","R"]
["Gauteng","Germiston","3.5 TON",1,null,null,{"$f":"F5*E5","v":0},null,null,{"$f":"I5+H5+G5","v":0},null,null,{"$f":"L5*E5","v":0},null,{"$f":"N5+M5+K5+J5","v":0}]
[null,"Jetpark","3TON ",1,null,null,0,null,null,0,null,null,0,null,0]
[null,"Johannesburg International","3TON CLOSED CAB",1,null,null,0,null,null,0,null,null,0,null,0]
[null,"Silverton","3TON ",1,null,null,0,null,null,0,null,null,0,null,0]
[null,null,"Reich Truck",1,null,null,0,null,null,0,null,null,0,null,0]
[null,"Tshwane","2.5 TON",1,null,null,0,null,null,0,null,null,0,null,0]
[null,null,"3.5 TON",1,null,null,0,null,null,0,null,null,0,null,0]
[null,"Witspos","2.5 TON",2,null,null,0,null,null,0,null,null,0,null,0]
["Gauteng",null,null,{"$f":"SUM(D5:D12)","v":9},{"$nulls":10},{"$f":"SUM(O5:O12)","v":0}]
[]
[{"$nulls":4},"Labour Rate per hour","MAJOR SERVICE",{"$nulls":4},"BATTERY","Electrical Repairs",null,null,"Total Cost per machine"]
["Forklift Region","Region","Vehicle Description","Total No. of Veh","Labour Rate per hour","Indicate Standard Labour Hours to complete a Service","Total Labour Service","Service Cost (All inclusive) per vehicle","Call Out Fee","Total Cost for Service per vehicle","New Battery Cost","Labour Hours","Total Labour Cost","Injector and Pump repairs"]
[{"$nulls":4},"R","HOURS","R","R","R","R","R",null,null,"R","R"]
["Gauteng","Johannesburg International","Nissan Tow Tractor",1,null,null,{"$f":"F18*E18","v":0},null,null,{"$f":"I18+H18+G18","v":0},null,null,{"$f":"L18*E18","v":0},null,{"$f":"N18+M18+K18+J18","v":0}]
["Gauteng Total",null,null,10]
[]
["Please complete every column - please do not leave blank.  If it is NO Charge put a 0"]
["* Cost must be all inclusive, if any cost not included will be incomplete pricing."]
["* All Prices must be inclusive of VAT"]
["*Bidders can choose to bid for the forklifts or the Tow tractor separately or for both"]
["* The quoted rates as per the bid proposal submitted will be fixed for the duration of the contract, any other or additional work/spares will be on a quote basis as and when required"]

{"sheet":"Forklift Central","index":2,"n_rows":11,"n_cols":15,"rows_kept":11,"merged":[[1,5,1,9],[1,10,1,12],[1,14,2,14],[2,0,3,0],[2,1,3,1],[2,2,3,2],[2,3,3,3]]}
["Annexure F - Pricing Schedule"]
[{"$nulls":4},"Labour Rate per hour","SERVICE",{"$nulls":4},"BATTERY",null,null,"LOAD TESTING","Total Cost per machine"]
["Forklift Region","Region Depot","Vehicle Description","Total No. of Veh","Labour Rate per hour","Indicate Standard Labour Hours to complete a Service","Total Labour Service","Service Cost (All inclusive) per vehicle","Call Out Fee","Total Cost for Service per vehicle","New Battery Cost","Indicate Standard Labour Hours to replace battery","Labour Cost for Battery replacement","Load Testing certificate per machine cost"]
[{"$nulls":4},"R","HOURS",null,"R","R","R","R","HOURS","R","R","R"]
["Central","Kimberly/Bloemfontein","3 TON",1,null,null,{"$f":"F5*E5","v":0},null,null,{"$f":"I5+H5+G5","v":0},null,null,{"$f":"L5*E5","v":0},null,{"$f":"N5+M5+K5+J5","v":0}]
["Central Total",null,null,{"$f":"SUM(D5)","v":1},{"$nulls":10},{"$f":"SUM(O5)","v":0}]
[]
["Please complete every column - please do not leave blank.  If it is NO Charge put a 0"]
["* Cost must be all inclusive, if any cost not included will be incomplete pricing."]
["* All Prices must be inclusive of VAT"]
["* The quoted rates as per the bid proposal submitted will be fixed for the duration of the contract, any other or additional work/spares will be on a quote basis as and when required"]

{"sheet":"Forklift KZN","index":3,"n_rows":12,"n_cols":15,"rows_kept":12,"merged":[[1,5,1,9],[1,10,1,12],[1,14,2,14],[2,0,3,0],[2,1,3,1],[2,2,3,2],[2,3,3,3],[4,0,5,0],[4,1,5,1]]}
["Annexure F - Pricing Schedule"]
[{"$nulls":4},"Labour Rate per hour","SERVICE",{"$nulls":4},"BATTERY",null,null,"LOAD TESTING","Total Cost per machine"]
["Forklift Region","Region Depot","Vehicle Description","Total No. of Veh","Labour Rate per hour","Indicate Standard Labour Hours to complete a Service","Total Labour Service","Service Cost (All inclusive) per vehicle","Call Out Fee","Total Cost for Service per vehicle","New Battery Cost","Indicate Standard Labour Hours to replace battery","Labour Cost for Battery replacement","Load Testing certificate per machine cost"]
[{"$nulls":4},"R","HOURS",null,"R","R","R","R","HOURS","R","R","R"]
["KZN","Durban","3.5 TON",1,null,null,{"$f":"F5*E5","v":0},null,null,{"$f":"I5+H5+G5","v":0},null,null,{"$f":"L5*E5","v":0},null,{"$f":"N5+M5+K5+J5","v":0}]
[null,null,"3TON CLOSED CAB",1,null,null,0,null,null,0,null,null,0,null,0]
["KZN Total",null,null,2,{"$nulls":10},{"$f":"SUM(O5:O6)","v":0}]
[]
["Please complete every column - please do not leave blank.  If it is NO Charge put a 0"]
["* Cost must be all inclusive, if any cost not included will be incomplete pricing."]
["* All Prices must be inclusive of VAT"]
["* The quoted rates as per the bid proposal submitted will be fixed for the duration of the contract, any other or additional work/spares will be on a quote basis as and when required"]

{"sheet":"Forklift Eastern Cape","index":4,"n_rows":12,"n_cols":15,"rows_kept":12,"merged":[[1,5,1,9],[1,10,1,12],[1,14,2,14],[2,0,3,0],[2,1,3,1],[2,2,3,2],[2,3,3,3]]}
["Annexure F - Pricing Schedule"]
[{"$nulls":4},"Labour Rate per hour","SERVICE",{"$nulls":4},"BATTERY",null,null,"LOAD TESTING","Total Cost per machine"]
["Forklift Region","Region Depot","Vehicle Description","Total No. of Veh","Labour Rate per hour","Indicate Standard Labour Hours to complete a Service","Total Labour Service","Service Cost (All inclusive) per vehicle","Call Out Fee","Total Cost for Service per vehicle","New Battery Cost","Indicate Standard Labour Hours to replace battery","Labour Cost for Battery replacement","Load Testing certificate per machine cost"]
[{"$nulls":4},"R","HOURS",null,"R","R","R","R","HOURS","R","R","R"]
["Eastern Cape","East London","3 TON CLOSED CAB",1,null,null,{"$f":"F5*E5","v":0},null,null,{"$f":"I5+H5+G5","v":0},null,null,{"$f":"L5*E5","v":0},null,{"$f":"N5+M5+K5+J5","v":0}]
[null,"George","3 TON",1,null,null,{"$f":"F6*E6","v":0},null,null,{"$f":"I6+H6+G6","v":0},null,null,{"$f":"L6*E6","v":0},null,{"$f":"N6+M6+K6+J6","v":0}]
[null,"Port Elizabeth","3 TON",1,null,null,0,null,null,0,null,null,0,null,0]
["Eastern Cape Total",null,null,{"$f":"SUM(D5:D7)","v":3},{"$nulls":10},{"$f":"SUM(O5:O7)","v":0}]
["Please complete every column - please do not leave blank.  If it is NO Charge put a 0"]
["* Cost must be all inclusive, if any cost not included will be incomplete pricing."]
["* All Prices must be inclusive of VAT"]
["* The quoted rates as per the bid proposal submitted will be fixed for the duration of the contract, any other or additional work/spares will be on a quote basis as and when required"]

{"sheet":"Forklift Western Cape","index":5,"n_rows":12,"n_cols":15,"rows_kept":12,"merged":[[1,5,1,9],[1,10,1,12],[1,14,2,14],[2,0,3,0],[2,1,3,1],[2,2,3,2],[2,3,3,3],[4,0,5,0],[4,1,5,1]]}
["Annexure F - Pricing Schedule"]
[{"$nulls":4},"Labour Rate per hour","SERVICE",{"$nulls":4},"BATTERY",null,null,"LOAD TESTING","Total Cost per machine"]
["Forklift Region","Region Depot","Vehicle Description","Total No. of Veh","Labour Rate per hour","Indicate Standard Labour Hours to complete a Service","Total Labour Service","Service Cost (All inclusive) per vehicle","Call Out Fee","Total Cost for Service per vehicle","New Battery Cost","Indicate Standard Labour Hours to replace battery","Labour Cost for Battery replacement","Load Testing certificate per machine cost"]
[{"$nulls":4},"R","HOURS",null,"R","R","R","R","HOURS","R","R","R"]
["Western Cape","Cape Mail","2.5 TON",2,null,null,{"$f":"F5*E5","v":0},null,null,{"$f":"I5+H5+G5","v":0},null,null,{"$f":"L5*E5","v":0},null,{"$f":"N5+M5+K5+J5","v":0}]
[null,null,"3 TON CLOSED CAB",1,null,null,0,null,null,0,null,null,0,null,0]
["Western Cape Total",null,null,3,{"$nulls":10},{"$f":"SUM(O5:O6)","v":0}]
[]
["Please complete every column - please do not leave blank.  If it is NO Charge put a 0"]
["* Cost must be all inclusive, if any cost not included will be incomplete pricing."]
["* All Prices must be inclusive of VAT"]
["* The quoted rates as per the bid proposal submitted will be fixed for the duration of the contract, any other or additional work/spares will be on a quote basis as and when required"]

{"sheet":"Motorbike Gauteng","index":6,"n_rows":10,"n_cols":14,"rows_kept":10,"merged":[[2,0,3,0],[2,1,3,1],[2,2,3,2],[2,3,3,3],[4,1,5,1]]}
["Annexure F - Pricing Schedule"]
[]
["Category","Region","Vehicle Description","Total No. of Veh","Service Cost (All inclusive) per vehicle","Indicate Standard Labour Hours to complete a Service","Labour Rate per hour","Total Labour","Call Out Fee","Total Cost for Service per vehicle","Recovery Fee/ towing per km in cases of a breakdown. Use 20km for comparison purposes","Total Recovery fee for 20Km","Total per vehicle","Grand Total"]
[{"$nulls":4},"R","hours","R","R","R","R","R","R","R","R"]
["Motorbike","Gauteng","Big Boy Scooter 150RS Adventure",25,null,null,{"$f":"E5*D5","v":0},{"$f":"G5*F5","v":0},null,{"$f":"E5+H5+I5","v":0},null,{"$f":"K5*20","v":0},{"$f":"L5+J5","v":0},{"$f":"M5*D5","v":0}]
["Fuel Trailer",null,"Fuel Tanker Trailer 500L",2,null,null,{"$f":"E6*D6","v":0},{"$f":"G6*F6","v":0},null,{"$f":"E6+H6+I6","v":0},null,{"$f":"K6*20","v":0},{"$f":"L6+J6","v":0},{"$f":"M6*D6","v":0}]
["Please complete every column - please do not leave blank.  If it is NO Charge put a 0"]
["* Cost must be all inclusive, if any cost not included will be incomplete pricing."]
["* All Prices must be inclusive of VAT"]
["* The quoted rates as per the bid proposal submitted will be fixed for the duration of the contract, any other or additional work/spares will be on a quote basis as and when required"]

{"sheet":"Motorbike Western Cape","index":7,"n_rows":10,"n_cols":14,"rows_kept":10,"merged":[[2,0,3,0],[2,1,3,1],[2,2,3,2],[2,3,3,3],[4,1,5,1]]}
["Annexure F - Pricing Schedule"]
[]
["Category","Region","Vehicle Description","Total No. of Veh","Service Cost (All inclusive) per vehicle","Indicate Standard Labour Hours to complete a Service","Labour Rate per hour","Total Labour","Call Out Fee","Total Cost for Service per vehicle","Recovery Fee/ towing per km in cases of a breakdown. Use 20km for comparison purposes","Total Recovery fee for 20Km","Total per vehicle","Grand Total"]
[{"$nulls":4},"R","hours","R","R","R","R","R","R","R","R"]
["Motorbike","Western Cape","Big Boy Scooter 150RS Adventure",7,null,null,{"$f":"E5*D5","v":0},{"$f":"G5*F5","v":0},null,{"$f":"E5+H5+I5","v":0},null,{"$f":"K5*20","v":0},{"$f":"L5+J5","v":0},{"$f":"M5*D5","v":0}]
["Fuel Trailer",null,"Fuel Tanker Trailer 500L",1,null,null,{"$f":"E6*D6","v":0},{"$f":"G6*F6","v":0},null,{"$f":"E6+H6+I6","v":0},null,{"$f":"K6*20","v":0},{"$f":"L6+J6","v":0},{"$f":"M6*D6","v":0}]
["Please complete every column - please do not leave blank.  If it is NO Charge put a 0"]
["* Cost must be all inclusive, if any cost not included will be incomplete pricing."]
["* All Prices must be inclusive of VAT"]
["* The quoted rates as per the bid proposal submitted will be fixed for the duration of the contract, any other or additional work/spares will be on a quote basis as and when required"]